fUST/lending_fUST_20240117
["ID","MTS","AMOUNT","RATE_DAILY","PERIOD"]
[311870537,1705480797010,-500.0,0.00045,120]
[311870538,1705480797033,-500.0,0.00045,120]
[311870539,1705480797058,-500.0,0.00045,120]
[311870540,1705480797082,-736.19670582,0.00045,120]
[311870541,1705480797106,-736.19670582,0.00045,120]
[311870542,1705480797130,-736.19670582,0.00045,120]
[311870543,1705480797154,-271.97369467,0.00045,120]
[311870544,1705480797177,-647.34904907,0.00045,120]
[311870545,1705480797201,-736.19670582,0.00045,120]
[311870546,1705480797225,-736.19670582,0.00045,120]
[311870547,1705480797249,-550.0,0.00045,120]
[311870548,1705480797274,-300.0,0.00045,120]
[311870549,1705480797298,-173.17989992,0.00045,120]
[311870550,1705480797321,-200.0,0.00045,120]
[311870551,1705480797347,-161.63015226,0.00045,120]
[311870552,1705480797372,-369.05241911,0.00045,120]
[311870553,1705480797397,-217.80313201,0.00045,120]
[311870554,1705480797420,-75299.0,0.00045,120]
[311870555,1705480797443,-382.0,0.00045,90]
[311870556,1705480797467,-200.0,0.00046,120]
[311870557,1705480797490,-170.0,0.00046,90]
[311870558,1705480797513,-382.0,0.00046865,90]
[311870559,1705480797539,-2416.0,0.00047108,120]
[311870560,1705480797562,-1502.690244,0.00047489,120]
[311870561,1705480797585,-170.0,0.00047954,90]
[311870562,1705480797608,-11102.07820508,0.00049,35]
[311870563,1705480797631,-385.0,0.00049209,90]
[311870564,1705480804483,1356.57263791,0.00045,120]
[311870565,1705480807930,-500.0,0.00043403,120]
[311870566,1705480807954,-868.25636797,0.00043403,120]
[311870567,1705480807978,-576.96867868,0.00043403,120]
[311870568,1705480808002,-487.06496966,0.00043403,120]
[311870569,1705480808026,-539.51830787,0.00043403,120]
[311870570,1705480808050,-424.79976051,0.00043403,120]
[311870571,1705480808073,-816.74835517,0.00043403,120]
[311870572,1705480808097,-921.96697674,0.00043403,120]
[311870573,1705480808120,-625.51602724,0.00043403,120]
[311870574,1705480808143,-313.74672745,0.00043403,120]
[311870575,1705480808165,-1838.49359132,0.00043403,120]
[311870576,1705480808189,-1600.03541405,0.00043403,40]
[311870577,1705480808213,-913.71174828,0.00043403,65]
[311870578,1705480808238,-3449.0,0.00043403,31]
[311870579,1705480808261,-3449.0,0.00043403,32]
[311870580,1705480808285,-1198.6801329,0.00043403,60]
[311870581,1705480808310,-626.29602613,0.00043403,60]
[311870662,1705481432229,-346.18174268,0.00019836,7]
[311870716,1705481438402,-3624.04621146,0.00019836,7]
[311870718,1705481438412,-155.0,0.00019836,3]
[311870720,1705481438422,-2082.34429626,0.0002,2]
[311870721,1705481438431,-616.51710907,0.00020494,2]
[311870723,1705481438441,-23953.0963744,0.00020495,2]
[311870725,1705481438451,-1830.1640816,0.00021,2]
[311870727,1705481438462,-200.0,0.00021819,7]
[311870729,1705481438471,-153.0,0.000219,2]
[311870731,1705481438481,-153.0,0.000219,2]
[311870733,1705481438491,-153.0,0.000219,2]
[311870735,1705481438502,-153.0,0.000219,2]
[311870737,1705481438513,-198.957615,0.000219,2]
[311870739,1705481438524,-153.0,0.000219,2]
[311870740,1705481438534,-153.0,0.000219,2]
[311870741,1705481438544,-153.0,0.000219,2]
[311870742,1705481438554,-153.0,0.000219,2]
[311870743,1705481438565,-316.9086742,0.000219,2]
[311870744,1705481438575,-153.0,0.000219,2]
[311870745,1705481438585,-219.4838226,0.000219,2]
[311870746,1705481438595,-198.957615,0.000219,2]
[311870747,1705481438605,-153.0,0.000219,2]
[311870748,1705481438614,-280.5559996,0.000219,2]
[311870749,1705481438623,-198.957615,0.000219,2]
[311870750,1705481438632,-1957.35589459,0.00021914,2]
[311870751,1705481438641,-521.18978843,0.00021914,2]
[311870752,1705481438652,-658.28606371,0.00021915,2]
[311870753,1705481438662,-200.31693402,0.00021915,2]
[311870754,1705481438672,-405.00008419,0.00021915,2]
[311870755,1705481438681,-1904.52326151,0.00021915,2]
[311870756,1705481438691,-155.02015262,0.00021915,2]
[311870757,1705481438702,-213.13739698,0.00021915,2]
[311870758,1705481438711,-322.69466175,0.00021915,2]
[311870759,1705481438722,-418.89841588,0.00021916,2]
[311870760,1705481438732,-62373.84640852,0.00021916,2]
[311870761,1705481438742,-638.48739459,0.00021917,2]
[311870762,1705481438751,-500.0,0.00021917,2]
[311870763,1705481438761,-500.0,0.00021917,2]
[311870764,1705481438770,-500.0,0.00021917,2]
[311870765,1705481438780,-500.0,0.00021917,2]
[311870766,1705481438791,-500.0,0.00021917,2]
[311870767,1705481438800,-500.0,0.00021917,2]
[311870768,1705481438810,-500.0,0.00021917,2]
[311870769,1705481438819,-500.0,0.00021917,2]
[311870770,1705481438831,-500.0,0.00021917,2]
[311870771,1705481438841,-500.0,0.00021917,2]
[311870772,1705481438851,-500.0,0.00021917,2]
[311870773,1705481438861,-522.58503635,0.00021917,2]
[311870774,1705481438872,-486.28301242,0.00021917,2]
[311870775,1705481438882,-500.0,0.00021917,2]
[311870776,1705481438892,-500.0,0.00021917,2]
[311870777,1705481438901,-500.0,0.00021917,2]
[311870778,1705481438912,-500.0,0.00021917,2]
[311870779,1705481438923,-606.5,0.00021917,2]
[311870780,1705481438933,-500.0,0.00021917,2]
[311870781,1705481438942,-500.0,0.00021917,2]
[311870782,1705481438951,-500.0,0.00021917,2]
[311870783,1705481438962,-500.0,0.00021917,2]
[311870784,1705481438973,-500.0,0.00021917,2]
[311870785,1705481438983,-529.77,0.00021917,2]
[311870786,1705481438992,-500.0,0.00021917,2]
[311870787,1705481439001,-500.0,0.00021917,2]
[311870788,1705481439011,-1418.39,0.00021917,2]
[311870789,1705481439021,-500.0,0.00021917,2]
[311870790,1705481439032,-500.0,0.00021917,2]
[311870791,1705481439042,-500.0,0.00021917,2]
[311870792,1705481439051,-500.0,0.00021917,2]
[311870793,1705481439060,-506.04587951,0.00021917,2]
[311870794,1705481439070,-885.48,0.00021917,2]
[311870795,1705481439079,-500.0,0.00021917,2]
[311870796,1705481439089,-500.0,0.00021917,2]
[311870798,1705481439099,-500.0,0.00021917,2]
[311870800,1705481439109,-768.29,0.00021917,2]
[311870802,1705481439119,-500.0,0.00021917,2]
[311870804,1705481439129,-500.0,0.00021917,2]
[311870806,1705481439138,-500.0,0.00021917,2]
[311870808,1705481439148,-199.39250185,0.00021917,2]
[311870810,1705481439157,-500.0,0.00021917,2]
[311870812,1705481439168,-500.0,0.00021917,2]
[311870814,1705481439180,-500.0,0.00021917,2]
[311870816,1705481439190,-952.61,0.00021917,2]
[311870818,1705481439201,-535.84483329,0.00021917,2]
[311870820,1705481439211,-505.28582934,0.00021917,2]
[311870821,1705481439221,-507.03929807,0.00021917,2]
[311870824,1705481439232,-500.0,0.00021917,2]
[311870825,1705481439242,-500.0,0.00021917,2]
[311870828,1705481439253,-586.54466235,0.00021917,2]
[311870830,1705481439263,-519.01649096,0.00021917,2]
[311870831,1705481439273,-500.0,0.00021917,2]
[311870833,1705481439290,-500.0,0.00021917,2]
[311870835,1705481439301,-505.67,0.00021917,2]
[311870838,1705481439312,-500.0,0.00021917,2]
[311870839,1705481439322,-1293.54,0.00021917,2]
[311870841,1705481439333,-500.0,0.00021917,2]
[311870843,1705481439343,-500.0,0.00021917,2]
[311870845,1705481439353,-500.0,0.00021917,2]
[311870847,1705481439364,-500.0,0.00021917,2]
[311870849,1705481439374,-1349.45,0.00021917,2]
[311870852,1705481439396,-500.0,0.00021917,2]
[311870854,1705481439407,-500.0,0.00021917,2]
[311870856,1705481439418,-500.0,0.00021917,2]
[311870858,1705481439429,-2803.97,0.00021917,2]
[311870859,1705481439439,-500.0,0.00021917,2]
[311870861,1705481439450,-500.0,0.00021917,2]
[311870863,1705481439461,-500.0,0.00021917,2]
[311870865,1705481439471,-500.0,0.00021917,2]
[311870867,1705481439482,-500.0,0.00021917,2]
[311870869,1705481439500,-500.0,0.00021917,2]
[311870871,1705481439512,-647.48,0.00021917,2]
[311870873,1705481439522,-500.0,0.00021917,2]
[311870875,1705481439535,-500.0,0.00021917,2]
[311870877,1705481439546,-503.88032041,0.00021917,2]
[311870879,1705481439556,-500.0,0.00021917,2]
[311870881,1705481439567,-263.49192401,0.00021917,2]
[311870883,1705481439578,-530.20222299,0.00021917,2]
[311870885,1705481439588,-606.68,0.00021917,2]
[311870886,1705481439599,-500.0,0.00021917,2]
[311870888,1705481439610,-874.03,0.00021917,2]
[311870890,1705481439622,-500.0,0.00021917,2]
[311870892,1705481439634,-500.0,0.00021917,2]
[311870894,1705481439645,-500.0,0.00021917,2]
[311870896,1705481439656,-500.0,0.00021917,2]
[311870898,1705481439667,-500.0,0.00021917,2]
[311870900,1705481439678,-1661.74,0.00021917,2]
[311870902,1705481439688,-500.0,0.00021917,2]
[311870904,1705481439699,-500.0,0.00021917,2]
[311870906,1705481439712,-500.0,0.00021917,2]
[311870908,1705481439722,-500.0,0.00021917,2]
[311870910,1705481439733,-500.0,0.00021917,2]
[311870912,1705481439744,-500.0,0.00021917,2]
[311870914,1705481439755,-500.0,0.00021917,2]
[311870916,1705481439765,-500.0,0.00021917,2]
[311870917,1705481439777,-500.0,0.00021917,2]
[311870919,1705481439788,-500.0,0.00021917,2]
[311870921,1705481439798,-451.30321561,0.00021917,2]
[311870923,1705481439811,-500.0,0.00021917,2]
[311870925,1705481439822,-500.0,0.00021917,2]
[311870927,1705481439837,-500.0,0.00021917,2]
[311870929,1705481439848,-2842.77,0.00021917,2]
[311870931,1705481439859,-500.0,0.00021917,2]
[311870933,1705481439871,-779.32,0.00021917,2]
[311870942,1705481439968,-500.0,0.00021917,2]
[311870944,1705481439981,-903.44,0.00021917,2]
[311870946,1705481439993,-500.0,0.00021917,2]
[311870948,1705481440004,-500.0,0.00021917,2]
[311870950,1705481440017,-500.0,0.00021917,2]
[311870952,1705481440036,-357.88867272,0.00021917,2]
[311870954,1705481440048,-500.0,0.00021917,2]
[311870956,1705481440062,-500.0,0.00021917,2]
[311870958,1705481440075,-500.0,0.00021917,2]
[311870960,1705481440087,-892.96,0.00021917,2]
[311870962,1705481440101,-500.0,0.00021917,2]
[311870964,1705481440116,-500.0,0.00021917,2]
[311870966,1705481440132,-500.0,0.00021917,2]
[311870968,1705481440145,-500.0,0.00021917,2]
[311870970,1705481440158,-30788.64,0.00021917,2]
[311870972,1705481440168,-500.0,0.00021917,2]
[311870974,1705481440179,-505.10395311,0.00021917,2]
[311870975,1705481440192,-500.0,0.00021917,2]
[311870977,1705481440204,-500.0,0.00021917,2]
[311870979,1705481440215,-500.0,0.00021917,2]
[311870981,1705481440226,-2225.02,0.00021917,2]
[311870983,1705481440236,-2711.22,0.00021917,2]
[311870985,1705481440247,-500.0,0.00021917,2]
[311870987,1705481440259,-500.0,0.00021917,2]
[311870989,1705481440271,-502.57805441,0.00021917,2]
[311870991,1705481440283,-555.18,0.00021917,2]
[311870993,1705481440295,-1068.65134143,0.00021917,2]
[311870995,1705481440307,-886.7,0.00021917,2]
[311870997,1705481440320,-500.0,0.00021917,2]
[311870999,1705481440332,-500.0,0.00021917,2]
[311871001,1705481440343,-465.35602054,0.00021917,2]
[311871003,1705481440354,-500.0,0.00021917,2]
[311871005,1705481440366,-6100.65,0.00021917,2]
[311871007,1705481440378,-500.0,0.00021917,2]
[311871009,1705481440389,-1664.77,0.00021917,2]
[311871011,1705481440400,-500.0,0.00021917,2]
[311871013,1705481440412,-2707.63,0.00021917,2]
[311871014,1705481440423,-500.0,0.00021917,2]
[311871016,1705481440433,-500.0,0.00021917,2]
[311871018,1705481440444,-500.0,0.00021917,2]
[311871020,1705481440455,-15959.29,0.00021917,2]
[311871022,1705481440466,-500.0,0.00021917,2]
[311871024,1705481440478,-500.0,0.00021917,2]
[311871027,1705481440488,-911.58,0.00021917,2]
[311871030,1705481440498,-500.0,0.00021917,2]
[311871032,1705481440508,-500.0,0.00021917,2]
[311871034,1705481440519,-500.0,0.00021917,2]
[311871036,1705481440530,-500.0,0.00021917,2]
[311871038,1705481440541,-406.59514001,0.00021917,2]
[311871040,1705481440551,-7125.79,0.00021917,2]
[311871042,1705481440561,-500.0,0.00021917,2]
[311871044,1705481440571,-500.0,0.00021917,2]
[311871046,1705481440581,-500.0,0.00021917,2]
[311871048,1705481440591,-500.0,0.00021917,2]
[311871049,1705481440601,-500.0,0.00021917,2]
[311871052,1705481440612,-500.0,0.00021917,2]
[311871053,1705481440622,-500.0,0.00021917,2]
[311871055,1705481440632,-1447.01,0.00021917,2]
[311871057,1705481440642,-1355.56,0.00021917,2]
[311871059,1705481440652,-500.0,0.00021917,2]
[311871061,1705481440661,-817.83,0.00021917,2]
[311871063,1705481440671,-500.0,0.00021917,2]
[311871065,1705481440682,-500.0,0.00021917,2]
[311871067,1705481440692,-500.0,0.00021917,2]
[311871069,1705481440701,-500.0,0.00021917,2]
[311871071,1705481440711,-500.0,0.00021917,2]
[311871073,1705481440721,-1854.88,0.00021917,2]
[311871075,1705481440733,-1311.62,0.00021917,2]
[311871077,1705481440743,-1673.84,0.00021917,2]
[311871078,1705481440753,-888.7,0.00021917,2]
[311871081,1705481440764,-500.0,0.00021917,2]
[311871083,1705481440774,-786.88,0.00021917,2]
[311871084,1705481440785,-500.0,0.00021917,2]
[311871086,1705481440795,-500.0,0.00021917,2]
[311871088,1705481440804,-10091.56,0.00021917,2]
[311871090,1705481440814,-720.61,0.00021917,2]
[311871092,1705481440824,-500.0,0.00021917,2]
[311871113,1705481441044,-500.0,0.00021917,2]
[311871114,1705481441054,-7875.15,0.00021917,2]
[311871116,1705481441064,-500.0,0.00021917,2]
[311871118,1705481441074,-500.96646124,0.00021917,2]
[311871120,1705481441084,-500.0,0.00021917,2]
[311871122,1705481441094,-500.0,0.00021917,2]
[311871124,1705481441105,-1827.11,0.00021917,2]
[311871126,1705481441114,-500.0,0.00021917,2]
[311871128,1705481441123,-8965.38,0.00021917,2]
[311871130,1705481441132,-500.0,0.00021917,2]
[311871132,1705481441142,-500.0,0.00021917,2]
[311871134,1705481441151,-500.0,0.00021917,2]
[311871136,1705481441160,-500.0,0.00021917,2]
[311871138,1705481441169,-500.0,0.00021917,2]
[311871140,1705481441178,-500.0,0.00021917,2]
[311871142,1705481441187,-3243.31,0.00021917,2]
[311871144,1705481441196,-500.0,0.00021917,2]
[311871146,1705481441206,-166.666666,0.00021918,2]
[311871148,1705481441215,-153.0,0.00021918,2]
[311871150,1705481441225,-198.957615,0.00021918,2]
[311871152,1705481441235,-153.0,0.00021918,2]
[311871154,1705481441246,-198.957615,0.00021918,2]
[311871156,1705481441256,-153.0,0.00021918,2]
[311871158,1705481441266,-198.957615,0.00021918,2]
[311871160,1705481441277,-306.0,0.00021918,2]
[311871162,1705481441287,-198.957615,0.00021918,2]
[311871164,1705481441297,-198.957615,0.00021918,2]
[311871166,1705481441307,-198.957615,0.00021918,2]
[311871167,1705481441318,-198.957615,0.00021918,2]
[311871169,1705481441328,-198.957615,0.00021918,2]
[311871171,1705481441338,-153.0,0.00021918,2]
[311871173,1705481441348,-153.0,0.00021918,2]
[311871175,1705481441359,-397.91523,0.00021918,2]
[311871177,1705481441369,-155.7547554,0.00021918,2]
[311871179,1705481441379,-153.0,0.00021918,2]
[311871181,1705481441390,-153.0,0.00021918,2]
[311871183,1705481441400,-293.1976279,0.00022,4]
[311871185,1705481441410,-157.08440165,0.00022,2]
[311871187,1705481441420,-3955.54830897,0.00022,2]
[311871189,1705481441430,-425.53656097,0.00022,2]
[311871191,1705481441440,-198.7191111,0.00022,2]
[311871193,1705481441450,-214.87288074,0.00022052,2]
[311871195,1705481441462,-1240.39707006,0.00022052,2]
[311871197,1705481441473,-500.0,0.00022054,2]
[311871199,1705481441482,-500.0,0.00022054,2]
[311871201,1705481441491,-500.0,0.00022054,2]
[311871203,1705481441500,-500.0,0.00022054,2]
[311871205,1705481441509,-500.0,0.00022054,2]
[311871207,1705481441518,-500.0,0.00022054,2]
[311871208,1705481441528,-615.47939903,0.00022054,2]
[311871210,1705481441538,-500.0,0.00022054,2]
[311871212,1705481441547,-500.0,0.00022054,2]
[311871214,1705481441556,-606.5,0.00022054,2]
[311871216,1705481441565,-500.0,0.00022054,2]
[311871218,1705481441574,-558.23249776,0.00022054,2]
[311871220,1705481441583,-500.0,0.00022054,2]
[311871222,1705481441592,-500.0,0.00022054,2]
[311871224,1705481441603,-500.0,0.00022054,2]
[311871226,1705481441612,-529.77,0.00022054,2]
[311871228,1705481441621,-500.0,0.00022054,2]
[311871230,1705481441630,-500.0,0.00022054,2]
[311871232,1705481441639,-1418.39,0.00022054,2]
[311871234,1705481441648,-500.0,0.00022054,2]
[311871235,1705481441658,-500.0,0.00022054,2]
[311871237,1705481441667,-500.0,0.00022054,2]
[311871239,1705481441677,-500.0,0.00022054,2]
[311871241,1705481441686,-885.48,0.00022054,2]
[311871243,1705481441695,-500.0,0.00022054,2]
[311871245,1705481441704,-500.0,0.00022054,2]
[311871248,1705481441713,-500.0,0.00022054,2]
[311871249,1705481441722,-768.29,0.00022054,2]
[311871251,1705481441731,-382.58669765,0.00022054,2]
[311871253,1705481441740,-500.0,0.00022054,2]
[311871255,1705481441749,-500.0,0.00022054,2]
[311871257,1705481441759,-500.0,0.00022054,2]
[311871259,1705481441768,-500.0,0.00022054,2]
[311871261,1705481441777,-952.61,0.00022054,2]
[311871263,1705481441786,-500.0,0.00022054,2]
[311871265,1705481441795,-500.0,0.00022054,2]
[311871267,1705481441805,-500.0,0.00022054,2]
[311871269,1705481441813,-500.0,0.00022054,2]
[311871271,1705481441822,-505.67,0.00022054,2]
[311871273,1705481441833,-500.0,0.00022054,2]
[311871275,1705481441844,-1293.54,0.00022054,2]
[311871276,1705481441853,-500.0,0.00022054,2]
[311871277,1705481441862,-500.0,0.00022054,2]
[311871278,1705481441872,-222.61017779,0.00022054,2]
[311871279,1705481441881,-500.0,0.00022054,2]
[311871280,1705481441891,-1349.45,0.00022054,2]
[311871281,1705481441900,-470.46759968,0.00022054,2]
[311871282,1705481441911,-500.0,0.00022054,2]
[311871283,1705481441921,-2803.97,0.00022054,2]
[311871284,1705481441931,-500.0,0.00022054,2]
[311871285,1705481441940,-500.0,0.00022054,2]
[311871286,1705481441949,-500.0,0.00022054,2]
[311871288,1705481441959,-500.0,0.00022054,2]
[311871289,1705481441967,-500.0,0.00022054,2]
[311871291,1705481441977,-533.42815237,0.00022054,2]
[311871294,1705481441987,-647.48,0.00022054,2]
[311871296,1705481441997,-500.0,0.00022054,2]
[311871298,1705481442006,-500.0,0.00022054,2]
[311871307,1705481442085,-500.0,0.00022054,2]
[311871309,1705481442095,-606.68,0.00022054,2]
[311871311,1705481442105,-500.0,0.00022054,2]
[311871313,1705481442115,-874.03,0.00022054,2]
[311871315,1705481442123,-500.0,0.00022054,2]
[311871317,1705481442133,-500.0,0.00022054,2]
[311871319,1705481442142,-500.0,0.00022054,2]
[311871321,1705481442151,-500.0,0.00022054,2]
[311871323,1705481442160,-500.0,0.00022054,2]
[311871325,1705481442170,-1661.74,0.00022054,2]
[311871327,1705481442179,-500.0,0.00022054,2]
[311871329,1705481442188,-500.0,0.00022054,2]
[311871331,1705481442197,-500.0,0.00022054,2]
[311871333,1705481442206,-500.0,0.00022054,2]
[311871335,1705481442216,-500.0,0.00022054,2]
[311871337,1705481442226,-500.0,0.00022054,2]
[311871339,1705481442235,-500.0,0.00022054,2]
[311871341,1705481442244,-500.0,0.00022054,2]
[311871343,1705481442253,-500.0,0.00022054,2]
[311871345,1705481442262,-550.0,0.00022054,2]
[311871347,1705481442272,-500.0,0.00022054,2]
[311871349,1705481442284,-500.0,0.00022054,2]
[311871351,1705481442293,-2842.77,0.00022054,2]
[311871353,1705481442302,-500.0,0.00022054,2]
[311871355,1705481442311,-779.32,0.00022054,2]
[311871357,1705481442320,-500.0,0.00022054,2]
[311871359,1705481442328,-903.44,0.00022054,2]
[311871361,1705481442338,-500.0,0.00022054,2]
[311871363,1705481442348,-611.52886073,0.00022054,2]
[311871365,1705481442357,-500.0,0.00022054,2]
[311871367,1705481442366,-500.0,0.00022054,2]
[311871369,1705481442375,-500.0,0.00022054,2]
[311871371,1705481442384,-500.0,0.00022054,2]
[311871373,1705481442393,-892.96,0.00022054,2]
[311871374,1705481442403,-500.0,0.00022054,2]
[311871377,1705481442413,-500.0,0.00022054,2]
[311871379,1705481442422,-500.0,0.00022054,2]
[311871381,1705481442431,-500.0,0.00022054,2]
[311871382,1705481442440,-30788.64,0.00022054,2]
[311871385,1705481442449,-500.0,0.00022054,2]
[311871386,1705481442458,-500.0,0.00022054,2]
[311871388,1705481442467,-507.15349144,0.00022054,2]
[311871390,1705481442476,-500.0,0.00022054,2]
[311871392,1705481442485,-2225.02,0.00022054,2]
[311871395,1705481442495,-2711.22,0.00022054,2]
[311871397,1705481442505,-500.0,0.00022054,2]
[311871399,1705481442514,-500.0,0.00022054,2]
[311871400,1705481442523,-555.18,0.00022054,2]
[311871402,1705481442534,-886.7,0.00022054,2]
[311871404,1705481442543,-500.0,0.00022054,2]
[311871406,1705481442552,-500.0,0.00022054,2]
[311871408,1705481442561,-500.0,0.00022054,2]
[311871410,1705481442570,-6100.65,0.00022054,2]
[311871412,1705481442579,-500.0,0.00022054,2]
[311871415,1705481442588,-1664.77,0.00022054,2]
[311871416,1705481442597,-500.0,0.00022054,2]
[311871418,1705481442607,-2707.63,0.00022054,2]
[311871420,1705481442616,-500.0,0.00022054,2]
[311871422,1705481442625,-500.0,0.00022054,2]
[311871424,1705481442635,-500.0,0.00022054,2]
[311871426,1705481442644,-15959.29,0.00022054,2]
[311871428,1705481442653,-500.0,0.00022054,2]
[311871430,1705481442663,-500.0,0.00022054,2]
[311871432,1705481442672,-911.58,0.00022054,2]
[311871434,1705481442681,-500.0,0.00022054,2]
[311871436,1705481442690,-500.0,0.00022054,2]
[311871438,1705481442700,-500.0,0.00022054,2]
[311871440,1705481442709,-500.0,0.00022054,2]
[311871442,1705481442717,-7125.79,0.00022054,2]
[311871444,1705481442727,-500.0,0.00022054,2]
[311871446,1705481442736,-500.0,0.00022054,2]
[311871448,1705481442745,-467.17315,0.00022054,2]
[311871450,1705481442755,-500.0,0.00022054,2]
[311871452,1705481442764,-500.0,0.00022054,2]
[311871454,1705481442773,-505.3528232,0.00022054,2]
[311871456,1705481442784,-500.0,0.00022054,2]
[311871458,1705481442793,-1447.01,0.00022054,2]
[311871460,1705481442802,-1355.56,0.00022054,2]
[311871462,1705481442811,-500.0,0.00022054,2]
[311871464,1705481442821,-817.83,0.00022054,2]
[311871466,1705481442831,-547.15371215,0.00022054,2]
[311871469,1705481442842,-500.0,0.00022054,2]
[311871471,1705481442852,-500.0,0.00022054,2]
[311871473,1705481442863,-168.86592678,0.00022054,2]
[311871474,1705481442872,-500.0,0.00022054,2]
[311871477,1705481442882,-1854.88,0.00022054,2]
[311871479,1705481442892,-1311.62,0.00022054,2]
[311871481,1705481442902,-1673.84,0.00022054,2]
[311871483,1705481442911,-888.7,0.00022054,2]
[311871485,1705481442922,-201.66657356,0.00022054,2]
[311871487,1705481442931,-786.88,0.00022054,2]
[311871489,1705481442940,-220.07216442,0.00022054,2]
[311871491,1705481442949,-500.0,0.00022054,2]
[311871493,1705481442959,-10091.56,0.00022054,2]
[311871495,1705481442968,-720.61,0.00022054,2]
[311871497,1705481442977,-500.0,0.00022054,2]
[311871499,1705481442987,-500.0,0.00022054,2]
[311871501,1705481442997,-7875.15,0.00022054,2]
[311871503,1705481443006,-500.0,0.00022054,2]
[311871505,1705481443016,-500.0,0.00022054,2]
[311871507,1705481443027,-500.0,0.00022054,2]
[311871509,1705481443036,-1827.11,0.00022054,2]
[311871511,1705481443045,-506.0700257,0.00022054,2]
[311871513,1705481443055,-8965.38,0.00022054,2]
[311871515,1705481443064,-366.65755106,0.00022054,2]
[311871517,1705481443073,-500.0,0.00022054,2]
[311871519,1705481443083,-500.0,0.00022054,2]
[311871521,1705481443092,-508.30920079,0.00022054,2]
[311871523,1705481443102,-500.0,0.00022054,2]
[311871525,1705481443112,-500.0,0.00022054,2]
[311871527,1705481443122,-3243.31,0.00022054,2]
[311871529,1705481443131,-209.73633126,0.00022054,2]
[311871531,1705481443140,-3358.5769567,0.00022091,2]
[311871533,1705481443149,-500.0,0.00022191,2]
[311871534,1705481443159,-500.0,0.00022191,2]
[311871536,1705481443168,-500.0,0.00022191,2]
[311871538,1705481443178,-606.5,0.00022191,2]
[311871540,1705481443187,-500.0,0.00022191,2]
[311871542,1705481443196,-529.77,0.00022191,2]
[311871544,1705481443205,-500.0,0.00022191,2]
[311871546,1705481443214,-500.0,0.00022191,2]
[311871548,1705481443223,-1418.39,0.00022191,2]
[311871550,1705481443232,-500.0,0.00022191,2]
[311871552,1705481443242,-500.0,0.00022191,2]
[311871554,1705481443251,-505.90431554,0.00022191,2]
[311871556,1705481443260,-500.0,0.00022191,2]
[311871558,1705481443270,-885.48,0.00022191,2]
[311871560,1705481443279,-500.0,0.00022191,2]
[311871562,1705481443289,-500.0,0.00022191,2]
[311871564,1705481443298,-500.0,0.00022191,2]
[311871566,1705481443307,-768.29,0.00022191,2]
[311871568,1705481443316,-500.0,0.00022191,2]
[311871570,1705481443326,-500.0,0.00022191,2]
[311871572,1705481443335,-503.30284957,0.00022191,2]
[311871574,1705481443344,-182.9364757,0.00022191,2]
[311871576,1705481443353,-952.61,0.00022191,2]